Workbook

Sheet ReadMe
A1: THIS SPREADSHEET CALCULATES AMOUNTS OWING FOR MAINTENANCE BY EACH PROPERTY OWNER ON A PRIVATE DEAD-END ROAD
M3: Original October, 2020 - George Zurakowski
A5: 1. | B5: Application: | D5: This spreadsheet calculates costs of snowplowing or road maintenance with options for seasonal/full-time and other weights.
A7: 2. | B7: Cost sharing formula: | D7: Based on a pro-rata approach: Each parcel owner’s share of costs incurred is determined as follows: Pro-rated cost share is
D8: based upon the percentage of roadway extending from the start of the Private Road to the intersection of each
D9: driveway (can use mid-point) where a residence exists.
A11: 3. | B11: Doubts on cost-sharing | D11: See the CostSharingOptions sheet. Please note that for a private road exiting at both ends onto a public road the best cost-
B12: approach? | D12: sharing approach is probably an equal split among all property owners, barring other factors such as seasonal
D13: versus full-time use, commercial versus homes, etc.
A15: 4. | B15: Where to start: | D15: Begin by inputting data on the InputSheet. You will enter a name/address, then the distance from the public road to each driveaway
D16: (driveway mid-point, say in miles, km, feet or metres, as you like) for each property access. Enter OTHER and SEASONAL WEIGHTS.
D18: For snow removal, for example, some residents may only use their properties a few times in winter, so they may be assigned a WEIGHT
D19: between 0% & 100%. OTHER WEIGHTS can be used to account for hilly terrain, flat road, etc. This can be less than or more than 100%.
D21: Finally, place an X beside each OWNER's name that is participating in the cost-sharing, presumably all for summer road maintenance
D22: but maybe a smaller number of names if the sheet is being used for snow-removal cost-sharing.
A24: 5. | B24: What happens: | D24: The InputSheet will calculate and filter the rows containing Active (X) OWNERS and produce side by side results. It will also output a table
D25: into the ACCOUNTS sheet where date and payment information can be entered for each owner against that OWNER's allocated cost.
D27: After all data has been entered on the InputSheet, only the ACCOUNTS sheet should be used. If changes to the number of ACTIVE
D28: OWNERS is made on the InputSheet, the ACCOUNTS figures may become misaligned, requiring re-entry.
D30: The INVOICES Sheet can be used for keeping a record of Contractor costs.
A32: 6. | B32: Questions? | D32: mail@georgezurakowski.com | G32: (October, 2020)

Sheet InputSheet
A1: ENTER NAMES, DISTANCES to all Driveway Midpoints (km) & WEIGHTS
B2: Change only green items on this side. Place an "X" for those opting in.
M3: This side is generated from the "INPUT" side at left - Do not touch
C4: ENTER SEASONAL TOTAL COST HERE: | G4: 10000
A6: ACTIVE | B6: OWNER | D6: DISTANCE | E6: DISTANCE | F6: OTHER % | G6: SEASONAL | H6: TOTAL % | I6: TOTAL % | J6: $ COST for | L6: ACTIVE | M6: OWNER | O6: DISTANCE | P6: DISTANCE | Q6: OTHER % | R6: SEASONAL | S6: TOTAL % | T6: TOTAL % | U6: $ COST for
A7: X | D7: (km) | E7: WEIGHT % | F7: WEIGHT | G7: WEIGHT % | H7: FACTOR | I7: WEIGHTS | J7: ACTIVES | L7: X | O7: (km) | P7: WEIGHT % | Q7: WEIGHT | R7: WEIGHT % | S7: FACTOR | T7: WEIGHTS | U7: ACTIVES
B8: Owner 1 | D8: 1.1 | E8: =D8/$D$33 -> 0.05066789498 | F8: 100 | G8: 100 | H8: =IF(A8="",0,E8*G8/100*F8/100) -> 0 | I8: =H8/$H$33 -> 0 | J8: =$G$4*I8 -> 0 | L8: x | M8: Owner 2 | O8: 1.2 | P8: =O8/$D$33 -> 0.05527406725 | Q8: 100 | R8: 20 | S8: =IF(L8="",0,P8*R8/100*Q8/100) -> 0.01105481345 | T8: =S8/$H$33 -> 0.0406779661 | U8: =$G$4*T8 -> 406.779661
A9: x | B9: Owner 2 | D9: 1.2 | E9: 0.05527406725 | F9: 100 | G9: 20 | H9: =IF(A9="",0,E9*G9/100*F9/100) -> 0.01105481345 | I9: 0.0406779661 | J9: 406.779661 | L9: x | M9: Owner 4 | O9: 2 | P9: 0.09212344542 | Q9: 100 | R9: 100 | S9: =IF(L9="",0,P9*R9/100*Q9/100) -> 0.09212344542 | T9: 0.3389830508 | U9: 3389.830508
B10: Owner 3 | D10: 0.9 | E10: 0.04145555044 | F10: 100 | G10: 100 | H10: =IF(A10="",0,E10*G10/100*F10/100) -> 0 | I10: 0 | J10: 0 | L10: X | M10: Owner 5 | O10: 2.1 | P10: 0.09672961769 | Q10: 100 | R10: 50 | S10: =IF(L10="",0,P10*R10/100*Q10/100) -> 0.04836480884 | T10: 0.1779661017 | U10: 1779.661017
A11: x | B11: Owner 4 | D11: 2 | E11: 0.09212344542 | F11: 100 | G11: 100 | H11: =IF(A11="",0,E11*G11/100*F11/100) -> 0.09212344542 | I11: 0.3389830508 | J11: 3389.830508 | L11: X | M11: Owner 7 | O11: 0.31 | P11: 0.01427913404 | Q11: 100 | R11: 100 | S11: =IF(L11="",0,P11*R11/100*Q11/100) -> 0.01427913404 | T11: 0.05254237288 | U11: 525.4237288
A12: X | B12: Owner 5 | D12: 2.1 | E12: 0.09672961769 | F12: 100 | G12: 50 | H12: =IF(A12="",0,E12*G12/100*F12/100) -> 0.04836480884 | I12: 0.1779661017 | J12: 1779.661017 | L12: X | M12: Owner 9 | O12: 2.3 | P12: 0.1059419622 | Q12: 100 | R12: 100 | S12: 0.1059419622 | T12: 0.3898305085 | U12: 3898.305085
B13: Owner 6 | D13: 3 | E13: 0.1381851681 | F13: 100 | G13: 100 | H13: 0 | I13: 0 | J13: 0
A14: X | B14: Owner 7 | D14: 0.31 | E14: 0.01427913404 | F14: 100 | G14: 100 | H14: 0.01427913404 | I14: 0.05254237288 | J14: 525.4237288
B15: Owner 8 | D15: 3.8 | E15: 0.1750345463 | F15: 100 | G15: 100 | H15: 0 | I15: 0 | J15: 0
A16: X | B16: Owner 9 | D16: 2.3 | E16: 0.1059419622 | F16: 100 | G16: 100 | H16: 0.1059419622 | I16: 0.3898305085 | J16: 3898.305085
B17: Owner 10 | D17: 5 | E17: 0.2303086135 | F17: 100 | G17: 100 | H17: 0 | I17: 0 | J17: 0
E18: 0 | H18: 0 | I18: 0 | J18: 0
E19: 0 | H19: 0 | I19: 0 | J19: 0
E20: 0 | H20: 0 | I20: 0 | J20: 0
E21: 0 | H21: 0 | I21: 0 | J21: 0
E22: 0 | H22: 0 | I22: 0 | J22: 0
E23: 0 | H23: 0 | I23: 0 | J23: 0
E24: 0 | H24: 0 | I24: =H24/$H$33 -> 0 | J24: 0
E25: 0 | H25: 0 | I25: 0 | J25: 0
E26: 0 | H26: 0 | I26: =H26/$H$33 -> 0 | J26: 0
E27: 0 | H27: 0 | I27: 0 | J27: 0
E28: 0 | H28: 0 | I28: 0 | J28: 0
E29: 0 | H29: 0 | I29: 0 | J29: 0
E30: 0 | H30: 0 | I30: 0 | J30: 0
E31: 0 | H31: 0 | I31: 0 | J31: 0
E32: 0 | H32: 0 | I32: 0 | J32: 0
B33: SUMS | D33: =SUM(D8:D32) -> 21.71 | E33: =SUM(E8:E32) -> 1 | H33: =SUM(H8:H32) -> 0.271764164 | I33: =SUM(I8:I32) -> 1 | J33: =SUM(J8:J32) -> 10000 | M33: SUMS | S33: =SUM(S8:S32) -> 0.271764164 | T33: =SUM(T8:T32) -> 1 | U33: =SUM(U8:U32) -> 10000
A36: NOTES: | B36: OTHER WEIGHT : | C36: can be due to lesser or higher burden for some reason (road difficulty, say) and can be less or more than 100% | M36: The above sums are for checking purposes only.
B37: DISTANCE : | C37: can be any distance measures - miles, km, meters, feet etc - change to suit.

Sheet ACCOUNTS
B1: Record of Owner Payments and Amounts Owing
B3: Period Covered: November 2020 - April 2021
E6: (mm/dd/yy) | G6: (mm/dd/yy)
A7: ACTIVE | B7: OWNER | D7: $ COST for | E7: Payment | F7: Payment | G7: Payment | H7: Payment | I7: Balance
A8: X | D8: ACTIVES | E8: Date 1 | F8: 1 | G8: Date 2 | H8: 2 | I8: Owing
A9: x | B9: Owner 2 | D9: 406.779661 | I9: =IF(A9=""," ",D9-F9-H9) -> 406.779661
A10: x | B10: Owner 4 | D10: 3389.830508 | I10: =IF(A10=""," ",D10-F10-H10) -> 3389.830508
A11: X | B11: Owner 5 | D11: 1779.661017 | F11: 1000 | I11: 779.6610169
A12: X | B12: Owner 7 | D12: 525.4237288 | I12: 525.4237288
A13: X | B13: Owner 9 | D13: 3898.305085 | I13: 3898.305085
C36: SUMS | D36: =SUM(D9:D35) -> 10000 | F36: =SUM(F9:F35) -> 1000 | H36: =SUM(H9:H35) -> 0 | I36: =SUM(I9:I35) -> 9000
B39: This sheet is generated from the data entered in the "InputSheet"

Sheet AUTHOR (hidden)
A3: This cost-sharing spreadsheet was developed by Gorge Zurakowski :-)

Sheet INVOICES
A1: Date: | B1: 2012-04-15
A3: Blah, blah, blah, Road Association of Some town in Some Country
A5: Contact: | B5: Some person(s)
A6: Telephone: | B6: 616-xxx-xxxx | C6: 616-zzz-zzzz
A8: RECORD of INVOICES
A10: TIME PERIOD: December 10, 2011 to April 15, 2012
A12: (mm/dd/yy)
A13: Date | B13: Contractor | C13: Amount | D13: Comments
A14: 2011-12-08 | B14: Contractor 1 | C14: 1000 | D14: Snow Clearing
A15: 2011-12-21 | B15: Contractor 2 | C15: 500 | D15: Widening road using farm tractor because too much snow
A16: 2012-03-04 | B16: Contractor 3 | C16: 500 | D16: some other
B32: TOTAL | C32: =SUM(C14:C31) -> 2000

Sheet CostSharingOptions
A1: VARIOUS APPROACHES TO COST-SHARING FOR PRIVATE ROAD RESIDENTS | K1: (Snowplowing, for instance)
A3: There are various philosophies on the division of road-maintenance costs!
A4: For illustrative and comparison purposes, I have created a scenario where there are 4 owners at 1km, 5 km, 6km and 8 km from the main road. The total yearly cost
A5: of a service (snowplowing, for example) is assumed to be $100 per km. Thus the annual cost for this assumed 8km road is $800. This does not consider the seasonal
A6: versus permanent residents issue or part-season questions or road section difficulty.
A9: Incremental Distance Approach | E9: Thinking: How much extra to plow/maintain next resident?
E10: This approach subsidizes distant owners at the expense of those close to the junction with public road or those with big
E11: intervals to previous owner. Owners are not charged for their proportional use of the road, just their last segment.
A12: M | |
A13: A | |
A14: I | | | B14: <--$100--> | C14: <-------------------- $400 ----------------------------> | G14: <--$100--> | H14: <---------- $200 -------->
A15: N | | | B15: **********1 | C15: ************ | D15: ************* | E15: ************* | F15: ************5 | G15: ************6 | H15: ************* | I15: ************8
A16: | |
A17: R | |
A18: D | |
A20: Simple Group Approach | E20: Thinking: Divide all costs equally. Works reasonably well for a road with access from both ends but not a dead end road
E21: where the vast majority of traffic is out to the main road and back. Folks close to the main road subsidize distant folks.
E22: For example, the first resident 1km from the main road pays $200 yet the cost to clear the road to his place is only $100.
E23: No consideration is given to kilometric road usage or that most users must traverse/use segments other than their own.
A24: M | | | E24: The first owner might opt out of the sharing agreement and just pay $100 to get the road plowed to his place?
A25: A | |
A26: I | | | B26: <--$200--> | C26: <-------------------- $200 ----------------------------> | G26: <--$200--> | H26: <---------- $200 -------->
A27: N | | | B27: **********1 | C27: ************ | D27: ************* | E27: ************* | F27: ************5 | G27: ************6 | H27: ************* | I27: ************8
A28: | |
A29: R | |
A30: D | |
A32: Distance Factor Approach | E32: Thinking: Costs based on distance travelled (usage factor). Distance to public road from each resident is measured and
E33: each resident pays for the percentage of roadway extending to the public road from his driveway.
E34: Examples: Resident at the 8km mark pays 8/20 X $800 =$320. The resident 1km from the road pays 1/20 X $800 = $40.
E35: Rationale: The further portions are only used by those living there. The closer portion(s) are used by everyone.
A36: M | |
A37: A | |
A38: I | | | B38: <---$40--> | C38: <-------------------- $200 ----------------------------> | G38: <--$240--> | H38: <---------- $320 -------->
A39: N | | | B39: **********1 | C39: ************ | D39: ************* | E39: ************* | F39: ************5 | G39: ************6 | H39: ************* | I39: ************8
A40: | | | B40: "1/20" | F40: "5/20" | G40: "6/20" | I40: "8/20" | K40: 1+5+6+8=20
A41: R | |
A42: D | |
A44: Food for Thought | E44: An experiment illustrates why residents closer to the main road pay less than the cost of plowing to their residences.
E45: Assume that our four residents initially lived at 1km with driveways radiating from a cul-de-sac. Only 1km, so only $100
E46: total. They would split the costs evenly. Each woud pay $25. Now let's pretend that 3 of these residents move 0.1, 0.2
E47: and 0.3 km further up the road. The total bill is now for 1.3km or $130. Should this change the bill for the first resident?
E48: Below are the results for the 3 computations (Incremental, Simple Group, Distance (Usage) Factor:
E50: Approach | G50: House 1 | H50: House 2 | I50: House 3 | J50: House 4 | L50: Total
E51: Incremental | G51: 100 | H51: 10 | I51: 10 | J51: 10 | L51: =SUM(G51:J51) -> 130
E52: Simple Group | G52: 32.5 | H52: 32.5 | I52: 32.5 | J52: 32.5 | L52: 130
E53: Distance Factor | G53: 28.26 | H53: 31.09 | I53: 33.91 | J53: 36.74 | L53: =SUM(G53:J53) -> 130
E55: The Distance Factor comes close to keeping House #1 near $25 when all 4 were at 1km and also results in intuitive
E56: modest increases for Houses 2, 3 and 4. But look what happens when the neighbours move further out using
E57: the example in the "Distance Factor Approach" in pink, above.
E58: House #1 now pays $40. So the further his neighbours go, the more it costs House #1 - h'mmm ???. I can't answer this.
